[Event "7th Paul Keres Memorial Festival 2026 Rapid"]
[Site "ESTONIA Resort Hotel & Spa conference center, EE"]
[Date "2026.08.02"]
[Round "5"]
[White "Pakalns, Raivis Kristians"]
[Black "Dubrovin, Robert"]
[Result "0-1"]
[Board "9"]
[TimeControl "12+3"]
[WhiteFideId "11607483"]
[BlackFideId "4501829"]
[WhiteElo "1995"]
[BlackElo "2268"]
[WhiteClock "0:00:12"]
[BlackClock "0:00:26"]
[Variant "Standard"]
[EndDate "2026.08.02"]
[EndTime "10:30:26"]

1. e4 {[%clk 0:12:05]}  e6 {[%clk 0:12:05]} 2. Qe2 {[%clk 0:12:05]}  c5 {[%clk 0:12:07]} 3. f4 {[%clk 0:12:07]}  Nc6 {[%clk 0:12:09]}
4. Nf3 {[%clk 0:12:08]}  g6 {[%clk 0:12:07]} 5. g3 {[%clk 0:12:02]}  Bg7 {[%clk 0:12:09]} 6. Bg2 {[%clk 0:12:01]}  d6 {[%clk 0:12:07]}
7. O-O {[%clk 0:11:46]}  Nge7 {[%clk 0:12:07]} 8. c3 {[%clk 0:11:41]}  O-O {[%clk 0:12:03]} 9. Na3 {[%clk 0:11:37]}  b6 {[%clk 0:11:15]}
10. Nc2 {[%clk 0:11:12]}  Bb7 {[%clk 0:11:09]} 11. d4 {[%clk 0:11:03]}  Qd7 {[%clk 0:11:06]} 12. Rd1 {[%clk 0:10:38]}  cxd4 {[%clk 0:10:45]}
13. cxd4 {[%clk 0:09:50]}  Rac8 {[%clk 0:09:58]} 14. Bd2 {[%clk 0:09:11]}  Rfe8 {[%clk 0:08:23]} 15. Bc3 {[%clk 0:08:38]}  f5 {[%clk 0:07:47]}
16. e5 {[%clk 0:07:12]}  Nd5 {[%clk 0:07:34]} 17. Ne3 {[%clk 0:07:10]}  Nxc3 {[%clk 0:07:15]} 18. bxc3 {[%clk 0:07:11]}  Na5 {[%clk 0:06:46]}
19. Rac1 {[%clk 0:06:47]}  d5 {[%clk 0:06:10]} 20. Bf1 {[%clk 0:05:14]}  Bf8 {[%clk 0:05:52]} 21. Qb2 {[%clk 0:04:35]}  Nc4 {[%clk 0:05:25]}
22. Nxc4 {[%clk 0:03:27]}  dxc4 {[%clk 0:05:27]} 23. Bg2 {[%clk 0:03:25]}  Be7 {[%clk 0:04:38]} 24. Ne1 {[%clk 0:03:21]}  Red8 {[%clk 0:04:21]}
25. Rb1 {[%clk 0:03:03]}  Bxg2 {[%clk 0:04:17]} 26. Nxg2 {[%clk 0:03:05]}  g5 {[%clk 0:03:51]} 27. Qb5 {[%clk 0:02:51]}  Qb7 {[%clk 0:03:45]}
28. Re1 {[%clk 0:02:20]}  Rd5 {[%clk 0:03:41]} 29. Qb2 {[%clk 0:02:13]}  Rd7 {[%clk 0:03:29]} 30. Qb5 {[%clk 0:01:48]}  Kh8 {[%clk 0:03:20]}
31. Rbd1 {[%clk 0:01:32]}  Rd5 {[%clk 0:03:14]} 32. Qb2 {[%clk 0:01:34]}  Rg8 {[%clk 0:02:54]} 33. Ne3 {[%clk 0:01:14]}  Rd7 {[%clk 0:02:35]}
34. Ng2 {[%clk 0:01:14]}  b5 {[%clk 0:02:19]} 35. Rb1 {[%clk 0:00:59]}  a6 {[%clk 0:02:16]} 36. a4 {[%clk 0:00:58]}  Rb8 {[%clk 0:02:11]}
37. axb5 {[%clk 0:00:55]}  axb5 {[%clk 0:02:13]} 38. Re2 {[%clk 0:00:29]}  Qf3 {[%clk 0:01:59]} 39. Rf2 {[%clk 0:00:26]}  Qe4 {[%clk 0:01:56]}
40. Re2 {[%clk 0:00:27]}  Qc6 {[%clk 0:01:50]} 41. Qd2 {[%clk 0:00:16]}  h6 {[%clk 0:01:06]} 42. fxg5 {[%clk 0:00:12]}  hxg5 {[%clk 0:00:49]}
43. h4 {[%clk 0:00:14]}  Qf3 {[%clk 0:00:41]} 44. Qe3 {[%clk 0:00:08]}  Qg4 {[%clk 0:00:32]} 45. hxg5 {[%clk 0:00:09]}  Bxg5 {[%clk 0:00:30]}
46. Nf4 {[%clk 0:00:11]}  Rg7 {[%clk 0:00:21]} 47. Rh2+ {[%clk 0:00:11]}  Kg8 {[%clk 0:00:24]} 48. Rhb2 {[%clk 0:00:10]}  Bxf4 {[%clk 0:00:24]}
49. Qxf4 {[%clk 0:00:12]}  Qxf4 {[%clk 0:00:26]} 0-1

[Event "7th Paul Keres Memorial Festival 2026 Rapid"]
[Site "ESTONIA Resort Hotel & Spa conference center, EE"]
[Date "2026.08.02"]
[Round "6"]
[White "Kazakouski, Valery"]
[Black "Laurusas, Tomas"]
[Result "1-0"]
[Board "1"]
[TimeControl "12+3"]
[WhiteFideId "13507443"]
[BlackFideId "12803731"]
[WhiteElo "2528"]
[BlackElo "2462"]
[WhiteTitle "GM"]
[BlackTitle "GM"]
[WhiteClock "0:00:10"]
[BlackClock "0:00:05"]
[Variant "Standard"]
[EndDate "2026.08.02"]
[EndTime "11:06:29"]

1. d4 {[%clk 0:12:05]}  d5 {[%clk 0:12:03]} 2. c4 {[%clk 0:12:06]}  c6 {[%clk 0:12:05]} 3. cxd5 {[%clk 0:12:08]}  cxd5 {[%clk 0:12:07]}
4. Nc3 {[%clk 0:12:10]}  Nf6 {[%clk 0:12:04]} 5. Nf3 {[%clk 0:12:10]}  e6 {[%clk 0:11:33]} 6. Bf4 {[%clk 0:12:09]}  Bd6 {[%clk 0:11:35]}
7. e3 {[%clk 0:12:10]}  Nc6 {[%clk 0:11:18]} 8. Rc1 {[%clk 0:11:55]}  O-O {[%clk 0:11:14]} 9. a3 {[%clk 0:11:22]}  Qe7 {[%clk 0:10:35]}
10. Bd3 {[%clk 0:11:09]}  Bd7 {[%clk 0:10:32]} 11. O-O {[%clk 0:11:04]}  Rfc8 {[%clk 0:10:31]} 12. Ne5 {[%clk 0:10:50]}  Be8 {[%clk 0:10:32]}
13. Bg3 {[%clk 0:10:41]}  Nd7 {[%clk 0:09:24]} 14. f4 {[%clk 0:09:21]}  f6 {[%clk 0:09:24]} 15. Nxc6 {[%clk 0:08:32]}  Rxc6 {[%clk 0:08:53]}
16. e4 {[%clk 0:08:33]}  Nb6 {[%clk 0:07:54]} 17. e5 {[%clk 0:08:19]}  fxe5 {[%clk 0:07:37]} 18. fxe5 {[%clk 0:08:13]}  Bc7 {[%clk 0:07:38]}
19. Qc2 {[%clk 0:07:40]}  h6 {[%clk 0:07:33]} 20. Bh4 {[%clk 0:07:32]}  g5 {[%clk 0:07:35]} 21. Bg3 {[%clk 0:06:56]}  Nc4 {[%clk 0:07:09]}
22. Rf6 {[%clk 0:06:38]}  Bb6 {[%clk 0:06:07]} 23. Qf2 {[%clk 0:06:28]}  Nxb2 {[%clk 0:06:07]} 24. Qxb2 {[%clk 0:04:30]}  Bxd4+ {[%clk 0:06:09]}
25. Bf2 {[%clk 0:04:31]}  Bxe5 {[%clk 0:06:08]} 26. Rxh6 {[%clk 0:04:32]}  Rac8 {[%clk 0:05:00]} 27. Qe2 {[%clk 0:02:14]}  Bg7 {[%clk 0:02:48]}
28. Bh7+ {[%clk 0:00:51]}  Kf8 {[%clk 0:02:21]} 29. Rf1 {[%clk 0:00:52]}  Bf7 {[%clk 0:02:23]} 30. Bg6 {[%clk 0:00:42]}  Rxc3 {[%clk 0:01:05]}
31. Bxf7 {[%clk 0:00:31]}  Bxh6 {[%clk 0:00:16]} 32. Bxe6 {[%clk 0:00:28]}  Rc1 {[%clk 0:00:05]} 33. Be1+ {[%clk 0:00:20]}  Kg7 {[%clk 0:00:04]}
34. Qe5+ {[%clk 0:00:19]}  Kg6 {[%clk 0:00:05]} 35. Bf5+ {[%clk 0:00:10]} 1-0

[Event "7th Paul Keres Memorial Festival 2026 Rapid"]
[Site "ESTONIA Resort Hotel & Spa conference center, EE"]
[Date "2026.08.02"]
[Round "6"]
[White "Shirov, Alexei"]
[Black "Lagarde, Maxime"]
[Result "1/2-1/2"]
[Board "2"]
[TimeControl "12+3"]
[WhiteFideId "2209390"]
[BlackFideId "662399"]
[WhiteElo "2616"]
[BlackElo "2599"]
[WhiteTitle "GM"]
[BlackTitle "GM"]
[WhiteClock "0:01:08"]
[BlackClock "0:00:50"]
[Variant "Standard"]
[EndDate "2026.08.02"]
[EndTime "11:05:43"]

1. e4 {[%clk 0:12:04]}  c5 {[%clk 0:12:05]} 2. Nf3 {[%clk 0:12:06]}  e6 {[%clk 0:12:08]} 3. d4 {[%clk 0:12:07]}  cxd4 {[%clk 0:12:09]}
4. Nxd4 {[%clk 0:12:08]}  Nc6 {[%clk 0:12:11]} 5. Nc3 {[%clk 0:12:07]}  Bc5 {[%clk 0:12:13]} 6. Ndb5 {[%clk 0:09:36]}  Nf6 {[%clk 0:12:02]}
7. Nd6+ {[%clk 0:09:18]}  Ke7 {[%clk 0:12:02]} 8. Nxc8+ {[%clk 0:09:18]}  Rxc8 {[%clk 0:11:54]} 9. Bd3 {[%clk 0:09:19]}  a6 {[%clk 0:09:13]}
10. O-O {[%clk 0:09:07]}  d6 {[%clk 0:09:04]} 11. Kh1 {[%clk 0:08:45]}  h6 {[%clk 0:07:53]} 12. f4 {[%clk 0:08:34]}  b5 {[%clk 0:07:38]}
13. Qe1 {[%clk 0:07:55]}  Qc7 {[%clk 0:06:54]} 14. a4 {[%clk 0:07:40]}  b4 {[%clk 0:06:52]} 15. Nd5+ {[%clk 0:07:41]}  exd5 {[%clk 0:06:53]}
16. exd5+ {[%clk 0:07:42]}  Kf8 {[%clk 0:06:54]} 17. dxc6 {[%clk 0:07:36]}  Qxc6 {[%clk 0:06:54]} 18. Bd2 {[%clk 0:07:27]}  Re8 {[%clk 0:06:44]}
19. Qg3 {[%clk 0:05:11]}  d5 {[%clk 0:05:22]} 20. Rae1 {[%clk 0:04:48]}  Ne4 {[%clk 0:05:18]} 21. Bxe4 {[%clk 0:04:48]}  dxe4 {[%clk 0:05:19]}
22. f5 {[%clk 0:04:45]}  Qf6 {[%clk 0:03:55]} 23. Qb3 {[%clk 0:04:30]}  Kg8 {[%clk 0:03:41]} 24. Bxb4 {[%clk 0:03:59]}  Bxb4 {[%clk 0:03:15]}
25. Qxb4 {[%clk 0:04:00]}  Kh7 {[%clk 0:03:17]} 26. Rxe4 {[%clk 0:03:54]}  Rb8 {[%clk 0:03:19]} 27. Qc3 {[%clk 0:03:18]}  Qxc3 {[%clk 0:03:13]}
28. bxc3 {[%clk 0:03:19]}  Rhc8 {[%clk 0:03:15]} 29. f6 {[%clk 0:03:10]}  g5 {[%clk 0:03:14]} 30. h4 {[%clk 0:03:08]}  Kg6 {[%clk 0:03:08]}
31. hxg5 {[%clk 0:02:47]}  hxg5 {[%clk 0:03:09]} 32. Rf3 {[%clk 0:02:43]}  Rc5 {[%clk 0:02:28]} 33. Rb4 {[%clk 0:02:16]}  Re8 {[%clk 0:02:30]}
34. Kh2 {[%clk 0:01:49]}  Rec8 {[%clk 0:01:45]} 35. Rb6 {[%clk 0:01:30]}  R8c6 {[%clk 0:01:17]} 36. Rb8 {[%clk 0:01:11]}  Rc8 {[%clk 0:01:11]}
37. Rxc8 {[%clk 0:01:05]}  Rxc8 {[%clk 0:01:13]} 38. Rd3 {[%clk 0:01:03]}  Rc4 {[%clk 0:01:09]} 39. Rd4 {[%clk 0:01:03]}  Rxc3 {[%clk 0:01:06]}
40. Rd6 {[%clk 0:01:04]}  a5 {[%clk 0:00:53]} 41. Rd5 {[%clk 0:01:06]}  Rxc2 {[%clk 0:00:50]} 42. Rxa5 {[%clk 0:01:08]} 1/2-1/2

[Event "7th Paul Keres Memorial Festival 2026 Rapid"]
[Site "ESTONIA Resort Hotel & Spa conference center, EE"]
[Date "2026.08.02"]
[Round "6"]
[White "Fridman, Daniel"]
[Black "Dubrovin, Robert"]
[Result "1/2-1/2"]
[Board "3"]
[TimeControl "12+3"]
[WhiteFideId "11600454"]
[BlackFideId "4501829"]
[WhiteElo "2555"]
[BlackElo "2268"]
[WhiteTitle "GM"]
[WhiteClock "0:00:09"]
[BlackClock "0:00:16"]
[Variant "Standard"]
[EndDate "2026.08.02"]
[EndTime "11:10:47"]

1. d4 {[%clk 0:12:03]}  e6 {[%clk 0:12:03]} 2. c4 {[%clk 0:12:05]}  Nf6 {[%clk 0:12:04]} 3. Nf3 {[%clk 0:12:07]}  b6 {[%clk 0:12:02]}
4. g3 {[%clk 0:12:09]}  Bb7 {[%clk 0:12:04]} 5. Bg2 {[%clk 0:12:10]}  Be7 {[%clk 0:12:02]} 6. O-O {[%clk 0:12:10]}  O-O {[%clk 0:12:03]}
7. Re1 {[%clk 0:12:07]}  c5 {[%clk 0:11:55]} 8. d5 {[%clk 0:12:07]}  exd5 {[%clk 0:11:41]} 9. Nh4 {[%clk 0:12:09]}  Ne4 {[%clk 0:11:27]}
10. cxd5 {[%clk 0:12:09]}  Bxh4 {[%clk 0:11:19]} 11. Bxe4 {[%clk 0:12:10]}  Bf6 {[%clk 0:11:08]} 12. Nc3 {[%clk 0:12:11]}  d6 {[%clk 0:11:05]}
13. Bf4 {[%clk 0:12:12]}  a6 {[%clk 0:11:04]} 14. a4 {[%clk 0:12:13]}  Qc7 {[%clk 0:09:59]} 15. Qc2 {[%clk 0:12:12]}  g6 {[%clk 0:09:49]}
16. Bg2 {[%clk 0:11:59]}  Nd7 {[%clk 0:09:41]} 17. Ne4 {[%clk 0:12:00]}  Be5 {[%clk 0:09:31]} 18. Bxe5 {[%clk 0:11:49]}  Nxe5 {[%clk 0:09:30]}
19. b4 {[%clk 0:10:57]}  Bc8 {[%clk 0:08:11]} 20. a5 {[%clk 0:09:23]}  Bf5 {[%clk 0:07:19]} 21. axb6 {[%clk 0:09:24]}  Qxb6 {[%clk 0:07:20]}
22. bxc5 {[%clk 0:09:25]}  Bxe4 {[%clk 0:07:13]} 23. Bxe4 {[%clk 0:09:25]}  dxc5 {[%clk 0:07:04]} 24. Qc3 {[%clk 0:07:51]}  Qd6 {[%clk 0:06:45]}
25. Ra5 {[%clk 0:07:50]}  Nd7 {[%clk 0:05:48]} 26. Bg2 {[%clk 0:07:49]}  f5 {[%clk 0:05:15]} 27. e4 {[%clk 0:07:28]}  fxe4 {[%clk 0:04:53]}
28. Rxe4 {[%clk 0:06:58]}  Rae8 {[%clk 0:04:44]} 29. Qc4 {[%clk 0:06:26]}  Rxe4 {[%clk 0:04:19]} 30. Bxe4 {[%clk 0:06:08]}  Rf6 {[%clk 0:03:59]}
31. f4 {[%clk 0:05:41]}  Kg7 {[%clk 0:03:52]} 32. Ra1 {[%clk 0:04:56]}  h6 {[%clk 0:03:30]} 33. Bg2 {[%clk 0:04:27]}  Qe7 {[%clk 0:02:48]}
34. Qc3 {[%clk 0:04:29]}  Kh7 {[%clk 0:02:44]} 35. Re1 {[%clk 0:04:02]}  Qd6 {[%clk 0:02:41]} 36. Bh3 {[%clk 0:03:50]}  Nf8 {[%clk 0:02:36]}
37. Be6 {[%clk 0:02:58]}  Kg7 {[%clk 0:02:33]} 38. Re5 {[%clk 0:02:47]}  h5 {[%clk 0:01:52]} 39. h3 {[%clk 0:02:42]}  c4 {[%clk 0:01:34]}
40. Qxc4 {[%clk 0:02:32]}  h4 {[%clk 0:01:14]} 41. g4 {[%clk 0:02:13]}  Qa3 {[%clk 0:01:09]} 42. Re2 {[%clk 0:00:59]}  Qg3+ {[%clk 0:00:57]}
43. Rg2 {[%clk 0:01:00]}  Qe1+ {[%clk 0:00:46]} 44. Kh2 {[%clk 0:01:01]}  Nxe6 {[%clk 0:00:46]} 45. dxe6 {[%clk 0:01:00]}  Rxe6 {[%clk 0:00:13]}
46. Qd4+ {[%clk 0:00:47]}  Kh7 {[%clk 0:00:08]} 47. Rf2 {[%clk 0:00:09]}  Qe3 {[%clk 0:00:09]} 48. Qxe3 {[%clk 0:00:10]}  Rxe3 {[%clk 0:00:11]}
49. Kg2 {[%clk 0:00:11]}  Rg3+ {[%clk 0:00:13]} 50. Kh2 {[%clk 0:00:14]}  Ra3 {[%clk 0:00:15]} 51. f5 {[%clk 0:00:16]}  gxf5 {[%clk 0:00:12]}
52. Rxf5 {[%clk 0:00:18]}  Ra2+ {[%clk 0:00:11]} 53. Kg1 {[%clk 0:00:20]}  Ra1+ {[%clk 0:00:12]} 54. Kf2 {[%clk 0:00:21]}  Ra2+ {[%clk 0:00:13]}
55. Ke1 {[%clk 0:00:23]}  Kg6 {[%clk 0:00:07]} 56. Rh5 {[%clk 0:00:25]}  a5 {[%clk 0:00:05]} 57. Kd1 {[%clk 0:00:27]}  a4 {[%clk 0:00:06]}
58. Kc1 {[%clk 0:00:29]}  a3 {[%clk 0:00:07]} 59. Kb1 {[%clk 0:00:30]}  Rb2+ {[%clk 0:00:07]} 60. Ka1 {[%clk 0:00:32]}  Rh2 {[%clk 0:00:07]}
61. Rxh4 {[%clk 0:00:34]}  Kg5 {[%clk 0:00:08]} 62. Rh8 {[%clk 0:00:35]}  Kf4 {[%clk 0:00:08]} 63. Rh5 {[%clk 0:00:37]}  Rg2 {[%clk 0:00:08]}
64. Kb1 {[%clk 0:00:14]}  Rb2+ {[%clk 0:00:07]} 65. Ka1 {[%clk 0:00:16]}  Rg2 {[%clk 0:00:09]} 66. Ra5 {[%clk 0:00:15]}  Rg3 {[%clk 0:00:09]}
67. Ra4+ {[%clk 0:00:16]}  Kg5 {[%clk 0:00:10]} 68. Ra5+ {[%clk 0:00:18]}  Kf4 {[%clk 0:00:11]} 69. Rh5 {[%clk 0:00:19]}  Rg2 {[%clk 0:00:13]}
70. Rh8 {[%clk 0:00:15]}  Ke4 {[%clk 0:00:07]} 71. Re8+ {[%clk 0:00:07]}  Kd4 {[%clk 0:00:07]} 72. Rh8 {[%clk 0:00:07]}  Kc3 {[%clk 0:00:06]}
73. Rf8 {[%clk 0:00:04]}  Rg3 {[%clk 0:00:06]} 74. Rh8 {[%clk 0:00:04]}  Rg2 {[%clk 0:00:08]} 75. Rb8 {[%clk 0:00:05]}  Rh2 {[%clk 0:00:06]}
76. Rc8+ {[%clk 0:00:06]}  Kb3 {[%clk 0:00:09]} 77. Rb8+ {[%clk 0:00:08]}  Kc3 {[%clk 0:00:11]} 78. Rh8 {[%clk 0:00:08]}  Kb3 {[%clk 0:00:13]}
79. Rb8+ {[%clk 0:00:09]}  Kc3 {[%clk 0:00:16]} 1/2-1/2

[Event "7th Paul Keres Memorial Festival 2026 Rapid"]
[Site "ESTONIA Resort Hotel & Spa conference center, EE"]
[Date "2026.08.02"]
[Round "6"]
[White "Keinanen, Toivo"]
[Black "Beniosev, Daniel"]
[Result "1-0"]
[Board "4"]
[TimeControl "12+3"]
[WhiteFideId "509825"]
[BlackFideId "11632674"]
[WhiteElo "2585"]
[BlackElo "2223"]
[WhiteTitle "IM"]
[BlackTitle "CM"]
[WhiteClock "0:02:32"]
[BlackClock "0:02:18"]
[Variant "Standard"]
[EndDate "2026.08.02"]
[EndTime "11:02:14"]

1. d4 {[%clk 0:12:06]}  Nf6 {[%clk 0:12:04]} 2. Nf3 {[%clk 0:12:08]}  d5 {[%clk 0:12:06]} 3. e3 {[%clk 0:12:10]}  c5 {[%clk 0:12:02]}
4. c3 {[%clk 0:12:12]}  Nc6 {[%clk 0:12:04]} 5. dxc5 {[%clk 0:12:14]}  a5 {[%clk 0:12:03]} 6. Bb5 {[%clk 0:12:16]}  Bd7 {[%clk 0:11:44]}
7. a4 {[%clk 0:12:18]}  e6 {[%clk 0:11:29]} 8. b4 {[%clk 0:12:20]}  axb4 {[%clk 0:11:19]} 9. Bxc6 {[%clk 0:12:23]}  bxc6 {[%clk 0:11:21]}
10. cxb4 {[%clk 0:12:25]}  Qb8 {[%clk 0:11:23]} 11. Qd4 {[%clk 0:11:38]}  Be7 {[%clk 0:10:44]} 12. Bb2 {[%clk 0:11:29]}  Nh5 {[%clk 0:09:59]}
13. Ne5 {[%clk 0:09:48]}  Bf6 {[%clk 0:09:48]} 14. f4 {[%clk 0:08:10]}  Bxe5 {[%clk 0:08:24]} 15. fxe5 {[%clk 0:07:54]}  g6 {[%clk 0:08:21]}
16. Nd2 {[%clk 0:07:29]}  Qd8 {[%clk 0:07:34]} 17. O-O {[%clk 0:07:22]}  O-O {[%clk 0:07:28]} 18. Rf2 {[%clk 0:07:08]}  Ng7 {[%clk 0:07:13]}
19. e4 {[%clk 0:07:11]}  Bc8 {[%clk 0:07:10]} 20. h3 {[%clk 0:06:38]}  dxe4 {[%clk 0:06:35]} 21. Qxe4 {[%clk 0:06:30]}  Qd5 {[%clk 0:06:17]}
22. Qf4 {[%clk 0:06:31]}  Qd3 {[%clk 0:05:55]} 23. Ne4 {[%clk 0:06:08]}  Nf5 {[%clk 0:05:14]} 24. Nf6+ {[%clk 0:05:43]}  Kg7 {[%clk 0:05:15]}
25. g4 {[%clk 0:05:32]}  Ne7 {[%clk 0:04:41]} 26. Bc1 {[%clk 0:04:44]}  Ng8 {[%clk 0:04:33]} 27. Ra3 {[%clk 0:04:06]}  Qd1+ {[%clk 0:04:25]}
28. Rf1 {[%clk 0:04:07]}  Qd8 {[%clk 0:03:47]} 29. Qe4 {[%clk 0:03:12]}  Ba6 {[%clk 0:03:33]} 30. Bg5 {[%clk 0:03:06]}  Bxf1 {[%clk 0:02:57]}
31. Nh5+ {[%clk 0:03:04]}  gxh5 {[%clk 0:02:58]} 32. Bxd8 {[%clk 0:03:06]}  Raxd8 {[%clk 0:02:58]} 33. Kxf1 {[%clk 0:03:06]}  Rd1+ {[%clk 0:02:59]}
34. Kg2 {[%clk 0:02:59]}  Rfd8 {[%clk 0:02:46]} 35. Rf3 {[%clk 0:02:46]}  h4 {[%clk 0:02:32]} 36. Qf4 {[%clk 0:02:43]}  R8d2+ {[%clk 0:02:20]}
37. Rf2 {[%clk 0:02:45]}  Rd3 {[%clk 0:02:22]} 38. Qg5+ {[%clk 0:02:32]}  Kh8 {[%clk 0:02:18]} 39. Qxh4 {[%clk 0:02:32]} 1-0

[Event "7th Paul Keres Memorial Festival 2026 Rapid"]
[Site "ESTONIA Resort Hotel & Spa conference center, EE"]
[Date "2026.08.02"]
[Round "6"]
[White "Harikrishnan.A.Ra"]
[Black "Lain, Sander"]
[Result "1-0"]
[Board "5"]
[TimeControl "12+3"]
[WhiteFideId "5081483"]
[BlackFideId "4511077"]
[WhiteElo "2404"]
[BlackElo "2099"]
[WhiteTitle "GM"]
[WhiteClock "0:02:04"]
[BlackClock "0:00:07"]
[Variant "Standard"]
[EndDate "2026.08.02"]
[EndTime "11:05:41"]

1. Nf3 {[%clk 0:12:03]}  Nf6 {[%clk 0:12:05]} 2. g3 {[%clk 0:12:05]}  d5 {[%clk 0:12:06]} 3. Bg2 {[%clk 0:12:06]}  g6 {[%clk 0:12:08]}
4. O-O {[%clk 0:11:57]}  Bg7 {[%clk 0:12:10]} 5. d4 {[%clk 0:11:59]}  O-O {[%clk 0:12:11]} 6. c4 {[%clk 0:12:01]}  c6 {[%clk 0:12:08]}
7. Qa4 {[%clk 0:12:02]}  Nbd7 {[%clk 0:11:57]} 8. cxd5 {[%clk 0:12:03]}  Nb6 {[%clk 0:11:55]} 9. Qb3 {[%clk 0:12:05]}  Nbxd5 {[%clk 0:11:45]}
10. Nc3 {[%clk 0:12:04]}  Rb8 {[%clk 0:11:25]} 11. Nxd5 {[%clk 0:11:59]}  Nxd5 {[%clk 0:11:09]} 12. e4 {[%clk 0:12:00]}  Nf6 {[%clk 0:11:03]}
13. Bf4 {[%clk 0:11:59]}  Ra8 {[%clk 0:11:05]} 14. Rfe1 {[%clk 0:11:41]}  Qb6 {[%clk 0:11:03]} 15. Qa3 {[%clk 0:11:43]}  Bg4 {[%clk 0:10:50]}
16. Be5 {[%clk 0:10:55]}  Rfe8 {[%clk 0:09:34]} 17. Nd2 {[%clk 0:10:52]}  Be6 {[%clk 0:09:24]} 18. Rac1 {[%clk 0:10:32]}  Bh6 {[%clk 0:09:08]}
19. Nc4 {[%clk 0:10:10]}  Qb5 {[%clk 0:06:56]} 20. Ne3 {[%clk 0:09:34]}  Ng4 {[%clk 0:06:40]} 21. Rc5 {[%clk 0:08:48]}  Qb6 {[%clk 0:06:37]}
22. Nxg4 {[%clk 0:08:31]}  Bxg4 {[%clk 0:06:35]} 23. h3 {[%clk 0:08:26]}  Bd7 {[%clk 0:06:21]} 24. Bf4 {[%clk 0:06:51]}  Bf8 {[%clk 0:06:10]}
25. Qc3 {[%clk 0:06:19]}  e5 {[%clk 0:05:46]} 26. Bxe5 {[%clk 0:06:18]}  Bxc5 {[%clk 0:05:34]} 27. dxc5 {[%clk 0:06:20]}  Qd8 {[%clk 0:04:49]}
28. Bf6 {[%clk 0:06:06]}  Qc7 {[%clk 0:04:34]} 29. Qd2 {[%clk 0:05:56]}  Re6 {[%clk 0:04:27]} 30. e5 {[%clk 0:05:58]}  Qc8 {[%clk 0:03:05]}
31. Rd1 {[%clk 0:05:59]}  Rxf6 {[%clk 0:02:57]} 32. exf6 {[%clk 0:06:00]}  Be6 {[%clk 0:02:57]} 33. b4 {[%clk 0:05:23]}  Qf8 {[%clk 0:02:59]}
34. h4 {[%clk 0:05:13]}  h5 {[%clk 0:02:46]} 35. Bf3 {[%clk 0:03:53]}  Kh7 {[%clk 0:02:30]} 36. a3 {[%clk 0:03:39]}  a5 {[%clk 0:02:24]}
37. Qg5 {[%clk 0:03:14]}  axb4 {[%clk 0:02:01]} 38. axb4 {[%clk 0:03:16]}  Qh6 {[%clk 0:00:37]} 39. b5 {[%clk 0:03:16]}  Ra5 {[%clk 0:00:27]}
40. bxc6 {[%clk 0:02:31]}  bxc6 {[%clk 0:00:28]} 41. Qe5 {[%clk 0:02:26]}  Qf8 {[%clk 0:00:19]} 42. Rd6 {[%clk 0:02:26]}  Ra3 {[%clk 0:00:12]}
43. Be4 {[%clk 0:02:20]}  Kg8 {[%clk 0:00:08]} 44. Rxe6 {[%clk 0:02:09]}  fxe6 {[%clk 0:00:08]} 45. Bxg6 {[%clk 0:02:09]}  Ra7 {[%clk 0:00:06]}
46. f7+ {[%clk 0:02:03]}  Rxf7 {[%clk 0:00:07]} 47. Qxe6 {[%clk 0:02:04]} 1-0

[Event "7th Paul Keres Memorial Festival 2026 Rapid"]
[Site "ESTONIA Resort Hotel & Spa conference center, EE"]
[Date "2026.08.02"]
[Round "6"]
[White "Kubicka, Anna"]
[Black "Mayorau, Mikita"]
[Result "0-1"]
[Board "6"]
[TimeControl "12+3"]
[WhiteFideId "1152254"]
[BlackFideId "13501720"]
[WhiteElo "2105"]
[BlackElo "2392"]
[WhiteTitle "WIM"]
[BlackTitle "GM"]
[WhiteClock "0:00:07"]
[BlackClock "0:03:21"]
[Variant "Standard"]
[EndDate "2026.08.02"]
[EndTime "11:04:53"]

1. e4 {[%clk 0:12:03]}  d6 {[%clk 0:12:05]} 2. d4 {[%clk 0:12:04]}  Nf6 {[%clk 0:12:05]} 3. Nc3 {[%clk 0:12:02]}  g6 {[%clk 0:12:07]}
4. Nf3 {[%clk 0:11:32]}  Bg7 {[%clk 0:12:04]} 5. Be2 {[%clk 0:11:19]}  O-O {[%clk 0:12:04]} 6. O-O {[%clk 0:11:19]}  Bg4 {[%clk 0:12:06]}
7. h3 {[%clk 0:11:14]}  Bxf3 {[%clk 0:12:04]} 8. Bxf3 {[%clk 0:11:15]}  Nc6 {[%clk 0:12:06]} 9. Ne2 {[%clk 0:10:19]}  e5 {[%clk 0:12:06]}
10. d5 {[%clk 0:09:48]}  Ne7 {[%clk 0:12:06]} 11. g3 {[%clk 0:09:49]}  Nd7 {[%clk 0:12:05]} 12. Bg2 {[%clk 0:09:18]}  Kh8 {[%clk 0:11:58]}
13. Be3 {[%clk 0:07:51]}  f5 {[%clk 0:11:38]} 14. exf5 {[%clk 0:07:46]}  gxf5 {[%clk 0:11:39]} 15. f4 {[%clk 0:07:45]}  Ng6 {[%clk 0:10:29]}
16. c3 {[%clk 0:07:15]}  Qe7 {[%clk 0:10:27]} 17. Qd2 {[%clk 0:07:04]}  Rae8 {[%clk 0:10:25]} 18. Rae1 {[%clk 0:07:04]}  Qf7 {[%clk 0:09:43]}
19. Kh2 {[%clk 0:06:30]}  e4 {[%clk 0:08:15]} 20. b4 {[%clk 0:05:17]}  Nb6 {[%clk 0:08:06]} 21. Bxb6 {[%clk 0:03:10]}  axb6 {[%clk 0:08:07]}
22. c4 {[%clk 0:03:04]}  Ra8 {[%clk 0:08:06]} 23. Nd4 {[%clk 0:02:37]}  Bxd4 {[%clk 0:08:06]} 24. Qxd4+ {[%clk 0:02:38]}  Qg7 {[%clk 0:08:08]}
25. Qxg7+ {[%clk 0:02:38]}  Kxg7 {[%clk 0:08:09]} 26. Rf2 {[%clk 0:02:38]}  Ra4 {[%clk 0:08:09]} 27. Rb2 {[%clk 0:02:37]}  Rfa8 {[%clk 0:08:02]}
28. Ree2 {[%clk 0:02:34]}  Ra3 {[%clk 0:08:01]} 29. c5 {[%clk 0:02:18]}  Kf6 {[%clk 0:07:35]} 30. cxd6 {[%clk 0:02:10]}  cxd6 {[%clk 0:07:37]}
31. Rec2 {[%clk 0:01:55]}  h5 {[%clk 0:07:14]} 32. h4 {[%clk 0:01:45]}  Ne7 {[%clk 0:07:16]} 33. Rc7 {[%clk 0:00:44]}  Nxd5 {[%clk 0:06:58]}
34. Rd7 {[%clk 0:00:22]}  Ke6 {[%clk 0:06:57]} 35. Rh7 {[%clk 0:00:23]}  Rxa2 {[%clk 0:06:54]} 36. Rxa2 {[%clk 0:00:20]}  Rxa2 {[%clk 0:06:56]}
37. Kg1 {[%clk 0:00:15]}  Ra1+ {[%clk 0:05:16]} 38. Kf2 {[%clk 0:00:17]}  e3+ {[%clk 0:04:21]} 39. Kf3 {[%clk 0:00:18]}  Ra2 {[%clk 0:04:13]}
40. Rh6+ {[%clk 0:00:20]}  Kf7 {[%clk 0:04:00]} 41. g4 {[%clk 0:00:22]}  hxg4+ {[%clk 0:03:35]} 42. Kg3 {[%clk 0:00:24]}  Nf6 {[%clk 0:03:36]}
43. h5 {[%clk 0:00:06]}  e2 {[%clk 0:03:27]} 44. Kf2 {[%clk 0:00:08]}  e1=Q+ {[%clk 0:03:22]} 45. Kxe1 {[%clk 0:00:06]}  Rxg2 {[%clk 0:03:23]}
46. Rh8 {[%clk 0:00:08]}  Rh2 {[%clk 0:03:23]} 47. Rb8 {[%clk 0:00:10]}  Nxh5 {[%clk 0:03:22]} 48. Rxb7+ {[%clk 0:00:12]}  Ke6 {[%clk 0:03:23]}
49. Rh7 {[%clk 0:00:06]}  g3 {[%clk 0:03:22]} 50. Kf1 {[%clk 0:00:07]}  Nxf4 {[%clk 0:03:21]} 0-1